bitfinex-derivatives/quotes_ETHF0:USTF0_20260115
["timestamp","ask_amount","ask_price","bid_price","bid_amount"]
[1768481224574,0.93090385,3361.8,3360.6,1.159]
[1768481224774,0.41058899,3362.1,3360.6,1.159]
[1768481224975,0.93090079,3362.0,3360.6,1.159]
[1768481225273,0.93090079,3361.9,3360.6,1.159]
[1768481225482,0.93090079,3361.8,3360.6,1.159]
[1768481225678,0.93090079,3361.7,3360.6,1.159]
[1768481225869,0.41058899,3362.1,3360.6,1.159]
[1768481226074,0.93095206,3362.0,3360.6,1.159]
[1768481226373,0.00445898,3361.6,3360.4,0.14883]
[1768481226577,0.00445898,3361.6,3360.7,2.976]
[1768481226882,0.93103013,3361.5,3360.4,0.14883]
[1768481227083,0.93103013,3361.4,3360.5,4.135]
[1768481227279,0.41504797,3361.6,3360.5,4.135]
[1768481227588,0.93114271,3361.5,3360.5,4.135]
[1768481227785,0.93114271,3361.4,3360.5,4.135]
[1768481228084,0.00445898,3361.6,3360.6,4.135]
[1768481228289,0.9311336,3361.5,3360.6,4.135]
[1768481228487,0.00445898,3361.6,3360.6,4.135]
[1768481228688,0.93120627,3361.5,3360.6,4.135]
[1768481228881,0.00445898,3361.6,3360.6,4.135]
[1768481229084,0.93120635,3361.5,3360.6,4.135]
[1768481229386,0.00445898,3361.6,3360.6,4.135]
[1768481229586,0.93133694,3361.5,3360.6,4.135]
[1768481229885,0.00445898,3361.6,3360.6,4.135]
[1768481230087,0.93133713,3361.5,3360.6,4.135]
[1768481230287,0.00445898,3361.6,3360.6,4.135]
[1768481230587,0.93132806,3361.5,3360.6,4.135]
[1768481230887,0.00445898,3361.6,3360.6,4.135]
[1768481231086,0.93132807,3361.5,3360.6,4.135]
[1768481231288,0.00445898,3361.6,3360.6,4.135]
[1768481231481,0.93141362,3361.5,3360.6,4.135]
[1768481231681,0.00445898,3361.6,3360.6,4.135]
[1768481231894,0.93141163,3361.5,3360.6,4.135]
[1768481232086,0.00445898,3361.6,3360.6,4.135]
[1768481232289,0.93142241,3361.5,3360.6,4.135]
[1768481232487,0.00445898,3361.6,3360.6,4.135]
[1768481232788,0.93145388,3361.5,3360.4,0.14883]
[1768481232989,0.93145388,3361.4,3360.4,0.14883]
[1768481233288,0.41504797,3361.6,3360.5,4.135]
[1768481233483,0.93142862,3361.5,3360.5,4.135]
[1768481233688,0.93142862,3361.4,3360.5,4.135]
[1768481233886,0.41504797,3361.6,3360.5,4.135]
[1768481234074,0.93142864,3361.5,3360.5,4.135]
[1768481234279,0.93142864,3361.4,3360.5,4.135]
[1768481234480,0.41504797,3361.6,3360.5,4.135]
[1768481234779,0.93139207,3361.5,3360.5,4.135]
[1768481235075,0.93139207,3361.4,3360.5,4.135]
[1768481235275,0.41504797,3361.6,3360.5,4.135]
[1768481235480,0.93135465,3361.5,3360.5,4.135]
[1768481235787,0.93135465,3361.4,3360.5,4.135]
[1768481235987,0.41504797,3361.6,3360.5,4.135]
[1768481236189,0.93135004,3361.5,3360.5,4.135]
[1768481236486,0.93135004,3361.4,3360.5,4.135]
[1768481236682,0.41504797,3361.6,3360.5,4.135]
[1768481236888,0.93131886,3361.5,3360.5,4.135]
[1768481237085,0.93131886,3361.4,3360.5,4.135]
[1768481237281,0.41504797,3361.6,3360.5,4.135]
[1768481237485,0.93128257,3361.5,3360.5,4.135]
[1768481237783,0.00214278,3362.4,3360.8,0.26819023]
[1768481237980,0.93113037,3362.3,3360.8,0.26819023]
[1768481238181,0.93113037,3362.2,3360.9,0.14881]
[1768481238383,0.00214278,3362.4,3360.9,0.14881]
[1768481240086,0.00214278,3362.4,3361.0,0.11120644]
[1768481240291,0.00214278,3362.4,3361.2,0.25999644]
[1768481240487,0.41058899,3363.4,3361.5,0.14878]
[1768481240988,0.41058899,3363.4,3362.1,0.00445898]
[1768481241191,0.41058899,3363.4,3362.2,1.159]
[1768481241396,0.41385197,3363.4,3362.2,1.1628559]
[1768481241777,0.41385197,3363.4,3362.2,0.0038559]
[1768481241983,0.41385197,3363.4,3362.3,1.159]
[1768481242284,0.00445898,3363.1,3362.3,1.159]
[1768481243187,0.00445898,3363.1,3362.4,1.159]
[1768481243788,0.00445898,3363.1,3362.2,0.0038559]
[1768481244095,0.00445898,3363.1,3362.3,1.159]
[1768481244792,0.31236003,3363.1,3362.2,0.0038559]
[1768481244995,0.31236003,3363.1,3362.2,1.1628559]
[1768481245192,0.31236003,3363.1,3362.2,0.0038559]
[1768481258898,0.30790105,3362.7,3360.9,0.14881]
[1768481259202,0.30790105,3362.5,3361.0,3.68]
[1768481259806,0.30790105,3362.5,3361.0,3.68235542]
[1768481260007,0.30790105,3362.5,3361.4,0.00445898]
[1768481263110,1.23474856,3362.4,3361.4,0.00445898]
[1768481263310,0.30790105,3362.4,3361.4,0.00445898]
[1768481263901,0.92686024,3362.3,3361.0,0.00235542]
[1768481264097,0.30790105,3362.1,3361.0,0.00235542]
[1768481264807,0.30790105,3361.9,3360.6,1.158]
[1768481265202,0.30790105,3361.9,3360.9,0.00445898]
[1768481265699,0.30790105,3361.9,3360.9,0.00781757]
[1768481277518,0.30790105,3361.9,3360.5,1.158]
[1768481278518,0.30790105,3361.9,3360.5,1.16092222]
[1768481281219,0.30790105,3361.9,3360.9,0.00445898]
[1768481285121,0.26582015,3361.7,3360.9,0.00445898]
[1768481287718,0.26582015,3362.2,3361.0,1.18126364]
[1768481288025,0.26582015,3362.7,3361.1,0.1488]
[1768481288218,0.26582015,3362.7,3361.2,1.18126364]
[1768481289825,0.27027913,3363.1,3361.6,1.18126364]
[1768481290025,0.27027913,3363.1,3361.6,2.33926364]
[1768481290322,0.27027913,3363.1,3361.6,5.31526364]
[1768481290518,0.27027913,3363.1,3361.6,4.134]
[1768481292523,0.27027913,3363.1,3361.3,0.14879]
[1768481292729,0.26582015,3362.7,3361.4,1.158]
[1768481292933,0.26582015,3362.7,3361.3,0.14879]
[1768481295350,0.26582015,3362.5,3360.9,0.00445898]
[1768481296435,0.26582015,3362.5,3361.0,1.158]
[1768481297343,0.26582015,3362.3,3361.0,2.3387267]
[1768481300745,0.26582015,3362.3,3361.0,1.1807267]
[1768481300944,0.26582015,3362.3,3361.0,2.3387267]
[1768481303750,0.26582015,3362.3,3361.2,1.1807267]
[1768481304049,0.22874606,3362.8,3361.4,1.1807267]
[1768481304253,0.92258846,3362.7,3361.4,1.1807267]
[1768481304443,0.22874606,3362.8,3360.9,0.00445898]
[1768481304444,0.92258846,3362.6,3361.3,1.1807267]
[1768481304645,0.92258846,3362.5,3361.4,1.158]
[1768481304846,1.40947276,3362.7,3361.4,1.158]
[1768481305041,1.40947276,3362.0,3360.9,0.00445898]
[1768481305256,0.22874606,3361.9,3360.9,0.00445898]
[1768481305947,0.22874606,3361.7,3360.9,0.00445898]
[1768481307451,0.22874606,3362.1,3360.9,0.00445898]
[1768481307654,0.92278097,3362.0,3360.9,0.00445898]
[1768481307855,0.22874606,3362.0,3360.9,0.00445898]
[1768481308346,1.40947276,3361.7,3360.9,0.00445898]
[1768481308549,1.1807267,3361.3,3360.9,0.00445898]
[1768481308749,1.1807267,3361.3,3360.6,0.14882]
[1768481308952,1.1807267,3361.3,3360.5,1.16092222]
[1768481309356,1.1807267,3361.5,3360.5,1.16092222]
[1768481309657,1.1807267,3361.5,3360.6,0.14882]
[1768481309852,0.00445898,3361.3,3360.6,0.14882]
[1768481314658,0.00445898,3361.3,3360.6,0.15327898]
[1768481320760,1.40947276,3362.1,3360.8,0.14881]
[1768481320957,0.92271582,3362.0,3360.8,0.14881]
[1768481321151,0.92274548,3361.9,3360.8,0.14881]
[1768481321346,0.22874606,3362.0,3360.8,0.14881]
[1768481321658,0.92277721,3361.9,3360.8,0.14881]
[1768481321856,0.00445898,3361.7,3360.8,0.14881]
[1768481322448,0.00445898,3361.7,3360.9,1.158]
[1768481322649,0.23320504,3361.7,3360.9,1.158]
[1768481325162,0.23320504,3361.7,3360.8,0.14881]
[1768481325363,0.23320504,3361.7,3360.9,1.158]
[1768481325564,0.00445898,3361.7,3360.9,1.158]
[1768481326166,0.22874606,3362.1,3360.9,1.158]
[1768481326167,0.22874606,3362.1,3360.9,2.4875367]
[1768481326360,0.22874606,3362.1,3361.2,1.1807267]
[1768481326669,0.22874606,3362.6,3361.2,1.1807267]
[1768481326861,1.15217037,3362.5,3361.2,1.1807267]
[1768481327055,1.40947276,3362.3,3361.0,0.1488]
[1768481327364,0.22874606,3361.8,3361.1,1.158]
[1768481327864,0.22874606,3361.8,3361.0,0.1488]
[1768481328057,0.22874606,3361.8,3361.1,1.158]
[1768481328358,0.22874606,3361.8,3361.0,1.3068]
[1768481328559,0.22874606,3361.8,3361.0,0.1488]
[1768481328860,0.22874606,3361.8,3361.0,1.3068]
[1768481331359,0.22874606,3361.8,3360.6,0.00445898]
[1768481331659,0.19407134,3361.7,3360.7,1.158]
[1768481331864,0.19407134,3361.5,3360.6,0.00445898]
[1768481335151,0.19407134,3361.5,3360.7,1.1807267]
[1768481335564,0.19407134,3361.5,3360.6,1.16245898]
[1768481340565,0.19407134,3361.9,3361.0,1.1807267]
[1768481340770,0.92101077,3361.8,3361.0,1.1807267]
[1768481341065,0.19407134,3361.9,3361.0,1.1807267]
[1768481341271,0.19407134,3361.1,3360.6,0.00445898]
[1768481341570,0.19407134,3361.1,3360.3,1.158]
[1768481342471,0.19407134,3361.1,3360.4,0.00445898]
[1768481342971,0.19407134,3360.5,3359.9,1.158]
[1768481343170,0.19407134,3360.5,3359.7,0.14886]
[1768481343171,0.19407134,3360.5,3359.8,1.158]
[1768481343964,0.20235694,3360.5,3359.8,1.16468967]
[1768481344766,0.20235694,3360.5,3359.8,0.00668967]
[1768481345070,2.13865169,3361.8,3360.4,1.1807267]
[1768481345276,0.92118522,3361.7,3360.7,1.1807267]
[1768481345462,0.92118522,3361.6,3360.7,1.1807267]
[1768481345664,1.1807267,3362.2,3360.8,1.1807267]
[1768481345869,0.92108526,3362.1,3361.1,1.1807267]
[1768481346067,0.92108526,3362.0,3361.1,1.18353167]
[1768481346267,0.00445898,3361.9,3361.1,1.18353167]
[1768481346571,0.00319725,3362.1,3361.2,0.00445898]
[1768481347567,0.00445898,3362.0,3361.2,0.00445898]
[1768481348575,0.19853032,3362.0,3361.2,0.00445898]
[1768481348772,0.00445898,3362.0,3361.2,0.00445898]
[1768481353274,0.19853032,3362.0,3361.2,0.00445898]
[1768481354776,0.00445898,3362.0,3361.2,0.00445898]
[1768481357277,0.19853032,3362.0,3361.2,0.00445898]
[1768481366177,0.00445898,3362.0,3361.2,0.00445898]
[1768481367483,0.00445898,3362.0,3361.2,0.15324898]
[1768481368177,0.18779964,3362.0,3361.2,1.31124898]
[1768481368484,0.18779964,3362.0,3361.2,0.15324898]
[1768481374287,0.18779964,3362.0,3361.2,0.00445898]
[1768481386296,0.18779964,3362.0,3360.9,1.30681]
[1768481386297,0.18779964,3362.0,3360.9,0.14881]
[1768481386492,0.18334066,3361.8,3360.9,0.14881]
[1768481387292,0.18334066,3361.8,3360.9,0.15178908]
[1768481398311,0.18334066,3361.8,3360.9,0.00297908]
[1768481398710,0.9260085,3361.7,3360.9,0.00297908]
[1768481398912,0.16105493,3361.6,3360.9,0.00297908]
[1768481399501,0.16105493,3361.6,3360.4,1.30683]
[1768481400213,0.16105493,3361.6,3360.4,0.14883]
[1768481400412,0.16105493,3361.6,3360.4,0.15230135]
[1768481402010,0.16105493,3361.6,3360.5,0.14883]
[1768481406709,0.16105493,3361.6,3360.4,0.00347135]
[1768481407221,0.16105493,3361.4,3360.4,0.00347135]
[1768481407902,0.16105493,3361.2,3360.0,0.14885]
[1768481408120,0.16105493,3361.0,3360.0,0.14885]
[1768481408410,0.16105493,3360.8,3359.6,0.14886]
[1768481409012,0.16105493,3360.8,3359.6,0.15123394]
[1768481409199,0.16105493,3360.6,3359.6,0.15123394]
[1768481415310,0.16105493,3360.6,3359.0,0.14889]
[1768481415813,0.16105493,3360.0,3359.0,0.14889]
[1768481416416,0.16105493,3360.0,3359.0,0.15143245]
[1768481421417,0.16105493,3360.0,3359.0,0.00254245]
[1768481422223,0.15777173,3360.8,3359.0,7.18497303]
[1768481422518,0.15777173,3360.2,3359.2,0.00445898]
[1768481423321,0.15777173,3360.2,3359.3,1.18243058]
[1768481423518,0.00445898,3360.0,3359.2,1.18688956]
[1768481425223,0.00445898,3360.0,3359.2,0.00445898]
[1768481425224,0.15515441,3360.0,3359.2,0.00445898]
[1768481426027,0.15515441,3360.0,3359.4,1.18243058]
[1768481426328,0.00445898,3360.0,3359.4,1.18243058]
[1768481427021,0.15069543,3360.4,3359.4,1.18243058]
[1768481429226,0.00445898,3360.2,3359.4,1.18243058]
[1768481430631,0.00445898,3360.2,3359.3,0.14888]
[1768481430839,0.15069543,3360.1,3359.2,0.00445898]
[1768481431436,0.15069543,3360.1,3359.2,1.18688956]
[1768481432438,0.15069543,3360.1,3359.4,1.18243058]
[1768481433646,0.00445898,3360.2,3359.8,1.18243058]
[1768481433841,0.00445898,3360.2,3359.6,1.18243058]
[1768481434035,0.00445898,3360.2,3359.4,1.18243058]
[1768481434435,0.15515441,3360.2,3359.3,1.18243058]
[1768481435850,0.15515441,3360.2,3359.6,1.18243058]
[1768481435851,0.00445898,3360.2,3359.6,1.18243058]
[1768481436244,0.15069543,3360.7,3359.8,1.18243058]
[1768481438538,0.15069543,3360.7,3359.6,0.14886]
[1768481438539,0.15069543,3360.7,3360.0,1.18243058]
[1768481439437,0.15069543,3361.1,3360.3,1.18243058]
[1768481439739,0.92466596,3361.0,3360.3,1.18243058]
[1768481439939,0.15069543,3361.1,3360.3,1.18243058]
[1768481440239,0.92466555,3361.0,3360.3,1.18243058]
[1768481440436,0.15069543,3361.1,3360.3,1.18243058]
[1768481440638,0.92461144,3361.0,3360.3,1.18243058]
[1768481440847,0.15069543,3361.1,3360.3,1.18243058]
[1768481441043,0.92461142,3361.0,3360.3,1.18243058]
[1768481441241,0.15069543,3361.1,3360.3,1.18243058]
[1768481441434,0.92452703,3361.0,3360.3,1.18243058]
[1768481441640,0.15069543,3361.1,3360.6,1.18243058]
[1768481441846,1.18243058,3361.9,3360.6,1.18243058]
[1768481442048,0.14874,3362.5,3360.6,1.18243058]
[1768481442049,0.00445898,3361.2,3360.6,1.18243058]
[1768481442239,0.00445898,3361.2,3360.9,0.00445898]
[1768481443933,0.15515441,3361.2,3360.9,0.00445898]
[1768481444444,0.15069543,3361.1,3360.2,0.14884]
[1768481444745,1.18688956,3361.2,3359.5,1.158]
[1768481444746,0.15069543,3360.7,3359.5,0.14887]
[1768481445543,0.15069543,3360.7,3359.8,0.00445898]
[1768481445941,1.18243058,3360.6,3359.8,0.00445898]
[1768481446248,0.15069543,3360.2,3359.0,0.00254245]
[1768481446551,0.15069543,3360.2,3359.2,1.18243058]
[1768481447645,0.15069543,3360.7,3359.5,1.18243058]
[1768481448652,0.15069543,3360.7,3359.3,0.14888]
[1768481448852,0.15069543,3360.7,3359.5,1.18243058]
[1768481450753,0.15069543,3360.7,3359.3,0.14888]
[1768481451058,0.14448714,3360.6,3359.3,0.14888]
[1768481452856,0.15325898,3361.2,3359.3,0.14888]
[1768481452857,0.14448714,3360.4,3359.3,0.14888]
[1768481453158,0.14448714,3360.0,3359.0,0.00254245]
[1768481454558,0.14448714,3359.8,3359.0,0.00254245]
[1768481455353,0.14448714,3359.8,3359.1,0.00445898]
[1768481455954,0.14448714,3359.8,3358.7,1.33134058]
[1768481456154,0.14448714,3359.8,3358.7,0.14891]
[1768481456974,0.14448714,3359.8,3358.7,0.15173434]
[1768481457855,0.14448714,3359.6,3358.7,0.00282434]
[1768481458060,0.14824061,3359.6,3358.3,1.18243058]
[1768481458266,0.14894612,3359.5,3358.5,1.18243058]
[1768481458850,0.14894612,3359.5,3358.4,0.14892]
[1768481459055,0.14894612,3359.5,3358.5,1.18243058]
[1768481459961,0.14894612,3359.5,3358.4,0.15234863]
[1768481460457,0.14894612,3359.5,3358.6,0.00446567]
[1768481464362,0.00445898,3359.5,3358.8,1.18243058]
[1768481465069,0.14448714,3360.3,3359.4,1.18243058]
[1768481465768,0.14448714,3360.8,3359.7,1.18243058]
[1768481466067,0.00446567,3360.6,3359.3,0.14888]
[1768481466265,0.14895281,3360.6,3359.4,1.18243058]
[1768481466565,0.14895281,3360.6,3359.3,0.14888]
[1768481466566,0.14448714,3360.3,3359.3,0.14888]
[1768481469470,0.00446567,3360.6,3359.4,1.33131058]
[1768481469675,0.00446567,3360.6,3359.6,1.18243058]
[1768481469966,0.00446567,3360.6,3359.0,1.18243058]
[1768481469967,0.00254486,3360.8,3360.2,1.18243058]
[1768481470174,0.00254486,3360.8,3360.0,1.18243058]
[1768481471367,0.00254486,3360.8,3359.7,0.14886]
[1768481475472,0.00254486,3360.8,3359.8,0.14886]
[1768481475863,0.00254486,3360.8,3359.9,0.14885]
[1768481476472,0.00446567,3360.7,3359.9,0.14885]
[1768481476766,0.00446567,3360.7,3360.0,0.14885]
[1768481476977,0.00254486,3360.8,3360.0,0.14885]
[1768481477963,0.00254486,3360.8,3359.6,1.86910951]
[1768481478163,0.14448714,3361.4,3359.6,1.86910951]
[1768481478872,0.00446567,3360.8,3360.2,0.14884]
[1768481479066,0.14448714,3361.8,3360.4,0.14883]
[1768481479872,0.14448714,3362.3,3360.5,0.14882]
[1768481480075,0.14448714,3362.1,3361.1,0.00446567]
[1768481480273,0.14448714,3361.9,3361.1,0.00718689]
[1768481484778,0.14448714,3361.9,3360.5,0.14882]
[1768481485772,0.14448714,3361.9,3360.9,0.00446567]
[1768481485973,0.14842446,3361.4,3360.5,0.00231592]
[1768481486984,0.14842446,3361.4,3360.6,0.00446567]
[1768481490188,0.14842446,3361.4,3359.6,0.14887]
[1768481491091,0.14842446,3361.4,3359.7,0.14886]
[1768481491284,0.14842446,3361.4,3359.9,0.14885]
[1768481491484,0.14842446,3361.4,3360.1,0.14884]
[1768481491783,0.14842446,3361.4,3360.2,0.14884]
[1768481492984,0.00446567,3361.5,3360.4,0.14883]
[1768481494887,0.15089436,3362.3,3360.5,0.07533764]
[1768481495083,0.15089436,3362.3,3361.1,1.18108]
[1768481495679,0.14842446,3362.7,3361.5,1.18108]
[1768481495890,0.14842446,3362.7,3361.4,0.14879]
[1768481496684,0.1512404,3362.7,3361.4,0.14879]
[1768481498585,0.1512404,3362.7,3361.5,0.14878]
[1768481509400,0.00446567,3362.4,3361.5,0.14878]
[1768481509896,0.00446567,3362.4,3361.6,0.14878]
[1768481512504,0.14741709,3362.4,3361.6,0.14878]
[1768481512794,0.00446567,3362.4,3361.6,0.14878]
[1768481513188,0.00446567,3362.4,3361.1,1.18108]
[1768481513394,0.00281594,3362.7,3361.9,0.14876]
[1768481513594,0.14295142,3363.3,3362.2,0.14875]
[1768481513794,0.14295142,3363.3,3362.2,1.32983]
[1768481514201,0.14295142,3363.9,3362.2,1.32983]
[1768481514401,0.14295142,3363.7,3362.4,0.00446567]
[1768481514600,0.14295142,3363.5,3362.4,0.00684386]
[1768481522009,0.14295142,3363.5,3362.4,0.15558386]
[1768481522611,0.14295142,3363.5,3362.5,0.14874]
[1768481523305,0.14295142,3363.5,3362.4,0.00684386]
[1768481523509,0.14295142,3363.2,3362.4,0.00684386]
[1768481524306,0.00446567,3363.3,3362.5,0.14874]
[1768481524608,0.14532395,3363.7,3362.7,0.14873]
[1768481524818,0.14295142,3363.5,3362.4,0.00684386]
[1768481525002,0.14295142,3363.3,3362.4,0.00684386]
[1768481532422,0.00237253,3363.7,3362.8,1.18108]
[1768481532723,0.00237253,3363.7,3362.4,1.18792386]
[1768481533021,0.00446125,3363.6,3362.4,1.18792386]
[1768481533717,0.00446125,3363.6,3362.7,0.14873]
[1768481535123,0.14865,3364.6,3362.7,0.14873]
[1768481535326,0.92219637,3364.5,3362.7,0.14873]
[1768481535626,0.92219637,3364.4,3362.7,0.14873]
[1768481536124,1.18108,3363.7,3362.4,0.00684386]
[1768481536329,0.92219637,3363.6,3362.4,0.00684386]
[1768481537113,0.14295142,3363.5,3362.4,0.00684386]
[1768481537317,1.06514779,3363.4,3362.4,0.00684386]
[1768481537611,0.14295142,3363.4,3362.4,0.00684386]
[1768481538015,0.14295142,3363.4,3362.4,0.15558386]
[1768481538216,0.14295142,3363.4,3362.5,0.14874]
[1768481538827,0.14295142,3364.3,3362.6,1.18108]
[1768481539123,0.14295142,3364.1,3362.8,0.14872]
[1768481539314,1.06557131,3364.0,3362.8,0.14872]
[1768481539531,0.92261989,3363.9,3362.8,0.14872]
[1768481540928,0.145861,3363.8,3362.8,0.14872]
[1768481543433,0.145861,3364.3,3363.1,1.1793211]
[1768481543624,1.06073932,3364.2,3363.1,1.1793211]
[1768481543823,0.92259809,3364.1,3363.1,1.1793211]
[1768481544125,0.92259809,3364.0,3363.1,1.1793211]
[1768481544318,0.13814123,3364.2,3363.1,1.1793211]
[1768481544526,0.13814123,3364.2,3363.4,1.1793211]
[1768481544835,0.00321199,3364.4,3363.6,1.1793211]
[1768481545531,0.13814123,3365.1,3363.9,1.1793211]
[1768481545737,3.17381332,3365.8,3363.6,1.1793211]
[1768481545738,0.13814123,3364.9,3363.6,1.1793211]
[1768481545934,0.13814123,3364.2,3362.8,0.14872]
[1768481546139,0.13814123,3364.2,3363.3,1.1793211]
[1768481546436,0.00349643,3364.2,3363.3,1.1793211]
[1768481546741,0.00349643,3364.2,3363.6,1.1793211]
[1768481546937,0.13814123,3364.7,3363.8,1.1793211]
[1768481547345,0.13814123,3364.7,3363.9,0.00445898]
[1768481547642,0.13814123,3364.7,3363.9,1.18378008]
[1768481547838,0.14073959,3364.7,3363.9,0.00445898]
[1768481548038,0.13814123,3364.3,3363.9,0.00261807]
[1768481548230,0.00259836,3364.7,3362.9,1.1793211]
[1768481548231,0.13814123,3364.1,3362.9,1.1793211]
[1768481548432,0.00259836,3364.7,3363.0,0.14872]
[1768481548634,0.13814123,3364.5,3363.2,1.1793211]
[1768481549431,0.00445898,3364.2,3363.5,0.00445898]
[1768481549840,0.13814123,3364.0,3363.5,0.00445898]
[1768481550040,0.13814123,3364.0,3363.0,0.14872]
[1768481550242,0.13814123,3364.0,3363.1,1.1793211]
[1768481550442,0.00445898,3364.2,3363.4,1.1793211]
[1768481551146,0.00445898,3364.2,3363.5,0.00445898]
[1768481552444,0.00259836,3364.7,3363.5,0.00445898]
[1768481552445,0.00259836,3364.7,3364.0,1.1793211]
[1768481552841,0.00259836,3364.7,3363.7,1.1793211]
[1768481554346,0.00445898,3364.5,3363.5,1.18378008]
[1768481558851,0.00445898,3364.5,3363.5,0.00445898]
[1768481559153,1.32192131,3364.5,3363.5,0.00445898]
[1768481559852,0.13814123,3364.4,3363.5,0.00445898]
[1768481565651,0.00445898,3364.5,3363.8,1.1793211]
[1768481567857,0.00259836,3364.7,3363.7,1.1793211]
[1768481568551,0.00259836,3364.7,3363.9,1.1793211]
[1768481568745,0.00259836,3364.7,3364.2,1.1793211]
[1768481568948,0.13814123,3365.3,3364.1,1.1793211]
[1768481569153,0.92148733,3365.2,3364.1,1.1793211]
[1768481569352,0.92148733,3365.1,3364.1,1.1793211]
[1768481569554,0.13814123,3365.3,3364.1,1.1793211]
[1768481569858,0.13814123,3365.3,3363.7,0.14868]
[1768481569859,0.92152016,3365.2,3363.7,0.14868]
[1768481570056,0.92152016,3365.1,3364.1,1.1793211]
[1768481570253,0.92152016,3365.1,3363.8,0.14868]
[1768481570254,0.00236424,3365.3,3363.9,0.14868]
[1768481570451,0.13814123,3365.2,3364.1,1.1793211]
[1768481570953,0.00236424,3365.3,3364.0,0.14867]
[1768481571154,1.1793211,3364.9,3364.0,0.14867]
[1768481571354,0.00236424,3365.3,3363.5,0.00445898]
[1768481571561,0.00236424,3365.3,3364.7,1.1793211]
[1768481572060,0.14526254,3365.9,3364.7,1.1793211]
[1768481572251,1.06834094,3365.8,3364.5,1.1793211]
[1768481572451,0.14526254,3365.8,3364.5,1.1793211]
[1768481572755,1.1793211,3365.1,3364.3,0.14866]
[1768481573061,0.00265502,3365.1,3364.3,0.14866]
[1768481573663,0.00443664,3365.0,3364.3,0.14866]
[1768481575360,0.00443664,3365.0,3363.7,0.14868]
[1768481575562,0.00443664,3365.0,3363.7,1.3280011]
[1768481575958,1.32902028,3365.0,3363.7,0.14868]
[1768481576161,1.32458364,3364.8,3363.7,0.14868]
[1768481577560,0.00443664,3365.0,3364.2,1.1793211]
[1768481578560,0.00443664,3365.0,3363.9,0.14868]
[1768481578864,0.00443664,3365.0,3364.2,1.1793211]
[1768481579564,0.00443664,3365.0,3363.9,0.14868]
[1768481579755,0.00443664,3365.0,3364.2,1.1793211]
[1768481580161,0.00443664,3365.0,3363.9,0.14868]
[1768481580365,0.00443664,3365.0,3364.2,1.1793211]
[1768481581969,0.00443664,3365.0,3363.9,0.14868]
[1768481581970,1.32902028,3365.0,3363.9,0.14868]
[1768481582162,0.14526254,3364.9,3363.8,1.1793211]
[1768481582464,0.14526254,3364.9,3364.0,1.1793211]
[1768481582671,0.00443664,3365.0,3364.0,1.1793211]
[1768481582965,0.00443664,3365.0,3364.6,1.1793211]
[1768481583165,0.14526254,3365.8,3364.6,1.1793211]
[1768481583366,0.92294394,3365.7,3364.6,1.1793211]
[1768481583559,0.14526254,3365.8,3364.6,1.1793211]
[1768481584169,0.14906621,3365.8,3364.6,1.1793211]
[1768481585169,0.14906621,3365.8,3364.9,1.1793211]
[1768481585370,0.14906621,3365.8,3364.9,1.18242581]
[1768481585567,0.00380367,3365.8,3364.9,1.18242581]
[1768481586467,0.00380367,3365.8,3364.9,0.00310471]
[1768481587774,0.00380367,3365.8,3365.2,1.1793211]
[1768481588774,0.14526254,3366.3,3365.2,1.1793211]
[1768481588980,1.32458364,3367.0,3365.7,1.1793211]
[1768481589177,1.0669848,3366.9,3365.7,1.1793211]
[1768481589368,0.92172226,3366.8,3365.6,1.1793211]
[1768481589673,0.92476834,3366.8,3365.4,0.00445898]
[1768481589974,1.1793211,3366.3,3365.4,0.00445898]
[1768481590169,0.14526254,3366.5,3365.4,0.00445898]
[1768481590471,0.14526254,3366.5,3365.4,1.18378008]
[1768481591271,1.18236718,3366.8,3365.4,1.18378008]
[1768481591572,0.92102452,3366.7,3365.4,1.18378008]
[1768481591771,1.18236718,3366.8,3365.4,1.18378008]
[1768481591973,0.9210248,3366.7,3365.4,1.18378008]
[1768481592177,1.1793211,3366.2,3365.4,0.00445898]
[1768481592763,1.32458364,3366.4,3365.4,0.00445898]
[1768481592963,0.14526254,3366.4,3365.4,0.00445898]
[1768481593676,1.32458364,3366.4,3365.4,0.00445898]
[1768481593973,1.1793211,3366.2,3365.4,0.00445898]
[1768481594479,0.14526254,3366.3,3365.4,0.00445898]
[1768481597974,0.14830862,3366.8,3365.8,1.1793211]
[1768481598373,0.14526254,3367.9,3366.3,0.14857]
[1768481598576,1.1793211,3367.3,3365.8,0.12988285]
[1768481598779,1.1793211,3367.3,3365.6,0.1486]
[1768481598780,1.1793211,3367.3,3365.9,1.1793211]
[1768481599282,0.14526254,3367.5,3366.1,1.1793211]
[1768481599479,0.0038217,3367.3,3366.1,1.1793211]
[1768481600177,0.0038217,3367.3,3366.3,1.1793211]
[1768481600578,0.0038217,3367.3,3365.9,0.14859]
[1768481600880,0.0038217,3367.3,3366.5,1.1793211]
[1768481601371,0.0038217,3367.3,3366.2,0.14857]
[1768481601775,0.14572857,3368.5,3366.3,0.27412684]
[1768481601982,1.06558608,3368.4,3366.3,0.55655684]
[1768481602179,0.14572857,3368.2,3367.1,0.00445898]
[1768481602486,0.14572857,3368.0,3367.1,0.00445898]
[1768481602675,0.14917876,3368.0,3367.1,0.00445898]
[1768481603174,0.00345019,3368.0,3367.1,0.00445898]
[1768481608485,2.47245921,3368.6,3367.1,0.00445898]
[1768481608486,0.13397068,3369.7,3367.8,0.1485]
[1768481608682,0.13397068,3369.5,3367.8,0.1485]
[1768481608990,0.13397068,3369.5,3367.4,0.14852]
[1768481609187,0.14842,3369.7,3368.3,0.00445195]
[1768481609487,0.13397068,3369.6,3368.3,0.00739208]
[1768481610689,0.13397068,3369.3,3368.3,0.00739208]
[1768481611081,0.13397068,3369.1,3368.3,0.00739208]
[1768481611387,0.13397068,3369.1,3367.2,0.13289873]
[1768481611784,0.13397068,3369.1,3367.1,0.14853]
[1768481612188,0.13397068,3369.1,3367.1,0.15236675]
[1768481612384,0.13397068,3369.1,3367.8,0.00445195]
[1768481612688,0.13397068,3369.0,3367.8,0.00445195]
[1768481613191,1.05110872,3368.9,3367.8,0.00445195]
[1768481613390,0.13397068,3368.8,3367.8,0.00445195]
[1768481614792,0.00442856,3368.6,3367.8,0.00445195]
[1768481617184,0.13754803,3369.7,3367.8,6.00445195]
[1768481617385,0.13397068,3369.5,3367.8,0.15295195]
[1768481618489,0.00357735,3369.7,3367.8,0.27804494]
[1768481618696,0.917235,3369.6,3367.8,0.27804494]
[1768481618994,0.917235,3369.5,3367.8,0.27804494]
[1768481619196,0.00357735,3369.7,3368.2,0.12499832]
[1768481619578,0.00357735,3369.7,3368.2,0.27347832]
[1768481620095,0.00357735,3369.7,3368.2,0.14848]
[1768481620697,0.13754803,3369.7,3367.8,0.00445195]
[1768481620898,0.13754803,3369.7,3367.8,0.15295195]